Workbook

Sheet Sheet1
A1: 2023年郑州市市属事业单位公开招聘工作人员笔试成绩公示 （成绩-1缺考、-2违纪）
A2: 序号 | B2: 报考岗位 | C2: 准考证号 | D2: 公基成绩 | E2: 专业成绩 | F2: 加分 | G2: 笔试总成绩
A3: 1 | B3: 1159 | C3: 23085522801 | D3: 38.7 | G3: =D3+F3 -> 38.7
A4: 2 | B4: 1165 | C4: 23085522802 | D4: 47 | G4: 47
A5: 3 | B5: 1165 | C5: 23085522803 | D5: 52.1 | G5: 52.1
A6: 4 | B6: 1165 | C6: 23085522804 | D6: 58.6 | G6: 58.6
A7: 5 | B7: 1165 | C7: 23085522805 | D7: -1 | G7: -1
A8: 6 | B8: 1159 | C8: 23085522806 | D8: 48.8 | G8: 48.8
A9: 7 | B9: 1159 | C9: 23085522807 | D9: 65.2 | G9: 65.2
A10: 8 | B10: 1159 | C10: 23085522808 | D10: -1 | G10: -1
A11: 9 | B11: 1159 | C11: 23085522809 | D11: 55.4 | G11: 55.4
A12: 10 | B12: 1165 | C12: 23085522810 | D12: 47.7 | G12: 47.7
A13: 11 | B13: 1165 | C13: 23085522811 | D13: 55.4 | G13: 55.4
A14: 12 | B14: 1165 | C14: 23085522812 | D14: 56.5 | G14: 56.5
A15: 13 | B15: 1165 | C15: 23085522813 | D15: 44.1 | G15: 44.1
A16: 14 | B16: 1159 | C16: 23085522814 | D16: 57.7 | G16: 57.7
A17: 15 | B17: 1165 | C17: 23085522815 | D17: 55.8 | G17: 55.8
A18: 16 | B18: 1159 | C18: 23085522816 | D18: 72.6 | G18: 72.6
A19: 17 | B19: 1159 | C19: 23085522817 | D19: 42.6 | G19: 42.6
A20: 18 | B20: 1159 | C20: 23085522818 | D20: 44.4 | G20: 44.4
A21: 19 | B21: 1159 | C21: 23085522819 | D21: 61.7 | G21: 61.7
A22: 20 | B22: 1159 | C22: 23085522820 | D22: 46 | G22: 46
A23: 21 | B23: 1165 | C23: 23085522821 | D23: 40.3 | G23: 40.3
A24: 22 | B24: 1159 | C24: 23085522822 | D24: -1 | G24: -1
A25: 23 | B25: 1159 | C25: 23085522823 | D25: 54.4 | G25: 54.4
A26: 24 | B26: 1165 | C26: 23085522824 | D26: 55.1 | G26: 55.1
A27: 25 | B27: 1165 | C27: 23085522825 | D27: 44.5 | G27: 44.5
A28: 26 | B28: 1159 | C28: 23085522826 | D28: 40.2 | F28: 5 | G28: 45.2
A29: 27 | B29: 1159 | C29: 23085522827 | D29: 45.7 | G29: 45.7
A30: 28 | B30: 1277 | C30: 23085500101 | D30: -1 | E30: -1 | G30: -1
A31: 29 | B31: 1264 | C31: 23085500102 | D31: 52 | E31: 57.2 | G31: =(D31+E31)/2+F31 -> 54.6
A32: 30 | B32: 1273 | C32: 23085500103 | D32: 52 | E32: 50.6 | G32: 51.3
A33: 31 | B33: 1269 | C33: 23085500104 | D33: 61.2 | E33: 71.1 | G33: 66.15
A34: 32 | B34: 1273 | C34: 23085500105 | D34: 46.9 | E34: 46.4 | G34: 46.65
A35: 33 | B35: 1278 | C35: 23085500106 | D35: 67.3 | E35: 65.2 | G35: 66.25
A36: 34 | B36: 1249 | C36: 23085500107 | D36: 49 | E36: 60.7 | G36: 54.85
A37: 35 | B37: 1278 | C37: 23085500108 | D37: 51.2 | E37: 63.7 | G37: 57.45
A38: 36 | B38: 1253 | C38: 23085500109 | D38: 38 | E38: 41.7 | G38: 39.85
A39: 37 | B39: 1270 | C39: 23085500110 | D39: -1 | E39: -1 | G39: -1
A40: 38 | B40: 1278 | C40: 23085500111 | D40: -1 | E40: -1 | G40: -1
A41: 39 | B41: 1278 | C41: 23085500112 | D41: -1 | E41: -1 | G41: -1
A42: 40 | B42: 1283 | C42: 23085500113 | D42: 38.3 | E42: 51.1 | G42: =(D42+E42)/2+F42 -> 44.7
A43: 41 | B43: 1278 | C43: 23085500114 | D43: 47.6 | E43: 60.2 | G43: 53.9
A44: 42 | B44: 1277 | C44: 23085500115 | D44: -1 | E44: -1 | G44: -1
A45: 43 | B45: 1264 | C45: 23085500116 | D45: 41.3 | E45: 41.8 | G45: 41.55
A46: 44 | B46: 1277 | C46: 23085500117 | D46: 54.8 | E46: 63.7 | G46: 59.25
A47: 45 | B47: 1278 | C47: 23085500118 | D47: 53.7 | E47: 68.9 | G47: 61.3
A48: 46 | B48: 1272 | C48: 23085500119 | D48: 52.5 | E48: 58.6 | G48: 55.55
A49: 47 | B49: 1273 | C49: 23085500120 | D49: 54.4 | E49: -1 | G49: =D49/2 -> 27.2
A50: 48 | B50: 1279 | C50: 23085500121 | D50: -1 | E50: -1 | G50: -1
A51: 49 | B51: 1250 | C51: 23085500122 | D51: 53.4 | E51: 63.1 | G51: =(D51+E51)/2+F51 -> 58.25
A52: 50 | B52: 1278 | C52: 23085500123 | D52: -1 | E52: -1 | G52: -1
A53: 51 | B53: 1278 | C53: 23085500124 | D53: 52.7 | E53: 64.6 | G53: 58.65
A54: 52 | B54: 1253 | C54: 23085500125 | D54: 63.9 | E54: 74.7 | G54: 69.3
A55: 53 | B55: 1262 | C55: 23085500126 | D55: -1 | E55: -1 | G55: -1
A56: 54 | B56: 1273 | C56: 23085500127 | D56: 43.9 | E56: 56.3 | G56: =(D56+E56)/2+F56 -> 50.1
A57: 55 | B57: 1253 | C57: 23085500128 | D57: 53.6 | E57: 58.5 | G57: 56.05
A58: 56 | B58: 1273 | C58: 23085500129 | D58: 49.4 | E58: 51 | G58: 50.2
A59: 57 | B59: 1278 | C59: 23085500130 | D59: -1 | E59: -1 | G59: -1
A60: 58 | B60: 1278 | C60: 23085500201 | D60: -1 | E60: -1 | G60: -1
A61: 59 | B61: 1273 | C61: 23085500202 | D61: -1 | E61: -1 | G61: -1
A62: 60 | B62: 1277 | C62: 23085500203 | D62: -1 | E62: -1 | G62: -1
A63: 61 | B63: 1253 | C63: 23085500204 | D63: -1 | E63: -1 | G63: -1
A64: 62 | B64: 1273 | C64: 23085500205 | D64: 48.4 | E64: 81.7 | G64: =(D64+E64)/2+F64 -> 65.05
A65: 63 | B65: 1273 | C65: 23085500206 | D65: 46.2 | E65: 69.4 | G65: 57.8
A66: 64 | B66: 1251 | C66: 23085500207 | D66: 26.8 | E66: 35.5 | G66: 31.15
A67: 65 | B67: 1273 | C67: 23085500208 | D67: 51 | E67: 57.8 | G67: 54.4
A68: 66 | B68: 1253 | C68: 23085500209 | D68: 36.7 | E68: 46.5 | G68: 41.6
A69: 67 | B69: 1253 | C69: 23085500210 | D69: 42.6 | E69: 57.4 | G69: 50
A70: 68 | B70: 1273 | C70: 23085500211 | D70: 35.4 | E70: 47.2 | G70: 41.3
A71: 69 | B71: 1272 | C71: 23085500212 | D71: 37.6 | E71: 49.2 | G71: 43.4
A72: 70 | B72: 1277 | C72: 23085500213 | D72: -1 | E72: -1 | G72: -1
A73: 71 | B73: 1254 | C73: 23085500214 | D73: 52.9 | E73: 71.6 | G73: =(D73+E73)/2+F73 -> 62.25
A74: 72 | B74: 1270 | C74: 23085500215 | D74: 47.3 | E74: 70.6 | G74: 58.95
A75: 73 | B75: 1277 | C75: 23085500216 | D75: 51.3 | E75: 43.2 | G75: 47.25
A76: 74 | B76: 1253 | C76: 23085500217 | D76: -1 | E76: -1 | G76: -1
A77: 75 | B77: 1278 | C77: 23085500218 | D77: -1 | E77: -1 | G77: -1
A78: 76 | B78: 1279 | C78: 23085500219 | D78: -1 | E78: -1 | G78: -1
A79: 77 | B79: 1273 | C79: 23085500220 | D79: 34.5 | E79: 40.1 | G79: =(D79+E79)/2+F79 -> 37.3
A80: 78 | B80: 1253 | C80: 23085500221 | D80: 43.3 | E80: 55.9 | G80: 49.6
A81: 79 | B81: 1277 | C81: 23085500222 | D81: 64.6 | E81: 53.4 | G81: 59
A82: 80 | B82: 1262 | C82: 23085500223 | D82: -1 | E82: -1 | G82: -1
A83: 81 | B83: 1278 | C83: 23085500224 | D83: 51.3 | E83: 49.6 | G83: =(D83+E83)/2+F83 -> 50.45
A84: 82 | B84: 1268 | C84: 23085500225 | D84: 49.9 | E84: 56.1 | G84: 53
A85: 83 | B85: 1250 | C85: 23085500226 | D85: 46.6 | E85: 51.3 | G85: 48.95
A86: 84 | B86: 1262 | C86: 23085500227 | D86: -1 | E86: -1 | G86: -1
A87: 85 | B87: 1264 | C87: 23085500228 | D87: -1 | E87: -1 | G87: -1
A88: 86 | B88: 1278 | C88: 23085500229 | D88: 55.7 | E88: 48.2 | G88: =(D88+E88)/2+F88 -> 51.95
A89: 87 | B89: 1279 | C89: 23085500230 | D89: -1 | E89: -1 | G89: -1
A90: 88 | B90: 1256 | C90: 23085500301 | D90: 47.9 | E90: 42.8 | G90: 45.35
A91: 89 | B91: 1253 | C91: 23085500302 | D91: 48.5 | E91: 82.4 | G91: 65.45
A92: 90 | B92: 1278 | C92: 23085500303 | D92: 54.2 | E92: 61.5 | G92: 57.85
A93: 91 | B93: 1268 | C93: 23085500304 | D93: 50.4 | E93: 54.1 | G93: 52.25
A94: 92 | B94: 1279 | C94: 23085500305 | D94: 67.6 | E94: 59.4 | G94: 63.5
A95: 93 | B95: 1277 | C95: 23085500306 | D95: 54.5 | E95: 54.8 | G95: 54.65
A96: 94 | B96: 1253 | C96: 23085500307 | D96: 53.6 | E96: 57.8 | G96: 55.7
A97: 95 | B97: 1283 | C97: 23085500308 | D97: 56.9 | E97: 55.7 | G97: 56.3
A98: 96 | B98: 1277 | C98: 23085500309 | D98: 58.3 | E98: 72.2 | G98: 65.25
A99: 97 | B99: 1273 | C99: 23085500310 | D99: 51 | E99: 83.6 | G99: 67.3
A100: 98 | B100: 1253 | C100: 23085500311 | D100: 51.3 | E100: 56.2 | G100: 53.75
A101: 99 | B101: 1254 | C101: 23085500312 | D101: 46.7 | E101: 78.6 | G101: 62.65
A102: 100 | B102: 1273 | C102: 23085500313 | D102: 45.1 | E102: 58.5 | G102: 51.8
A103: 101 | B103: 1279 | C103: 23085500314 | D103: 58.4 | E103: 75.4 | G103: 66.9
A104: 102 | B104: 1277 | C104: 23085500315 | D104: -1 | E104: -1 | G104: -1
A105: 103 | B105: 1270 | C105: 23085500316 | D105: 57.3 | E105: 62.1 | G105: =(D105+E105)/2+F105 -> 59.7
A106: 104 | B106: 1277 | C106: 23085500317 | D106: 52.5 | E106: 50.2 | G106: 51.35
A107: 105 | B107: 1279 | C107: 23085500318 | D107: 56.1 | E107: 70.8 | G107: 63.45
A108: 106 | B108: 1262 | C108: 23085500319 | D108: -1 | E108: -1 | G108: -1
A109: 107 | B109: 1280 | C109: 23085500320 | D109: 58.7 | E109: 56.1 | F109: 5 | G109: =(D109+E109)/2+F109 -> 62.4
A110: 108 | B110: 1254 | C110: 23085500321 | D110: 49 | E110: 52.1 | G110: 50.55
A111: 109 | B111: 1273 | C111: 23085500322 | D111: 50.4 | E111: 79.7 | G111: 65.05
A112: 110 | B112: 1273 | C112: 23085500323 | D112: -1 | E112: -1 | G112: -1
A113: 111 | B113: 1278 | C113: 23085500324 | D113: 58 | E113: 66.9 | G113: =(D113+E113)/2+F113 -> 62.45
A114: 112 | B114: 1267 | C114: 23085500325 | D114: 49.3 | E114: 58.6 | G114: 53.95
A115: 113 | B115: 1262 | C115: 23085500326 | D115: -1 | E115: -1 | G115: -1
A116: 114 | B116: 1256 | C116: 23085500327 | D116: 38.6 | E116: 42.7 | G116: 40.65
A117: 115 | B117: 1273 | C117: 23085500328 | D117: 47.3 | E117: 45.3 | G117: 46.3
A118: 116 | B118: 1282 | C118: 23085500329 | D118: 56.4 | E118: 53.5 | G118: 54.95
A119: 117 | B119: 1262 | C119: 23085500330 | D119: 51.3 | E119: 58.8 | G119: 55.05
A120: 118 | B120: 1277 | C120: 23085500401 | D120: -1 | E120: -1 | G120: -1
A121: 119 | B121: 1253 | C121: 23085500402 | D121: 55.6 | E121: 69.1 | G121: =(D121+E121)/2+F121 -> 62.35
A122: 120 | B122: 1264 | C122: 23085500403 | D122: 22.3 | E122: 49.1 | G122: =(D122+E122)/2+F122 -> 35.7
A123: 121 | B123: 1073 | C123: 23085500404 | D123: -1 | E123: -1 | G123: -1
A124: 122 | B124: 1262 | C124: 23085500405 | D124: -1 | E124: -1 | G124: -1
A125: 123 | B125: 1277 | C125: 23085500406 | D125: -1 | E125: -1 | G125: -1
A126: 124 | B126: 1271 | C126: 23085500407 | D126: -1 | E126: -1 | G126: -1
A127: 125 | B127: 1269 | C127: 23085500408 | D127: 49.1 | E127: 81.7 | G127: =(D127+E127)/2+F127 -> 65.4
A128: 126 | B128: 1277 | C128: 23085500409 | D128: -1 | E128: -1 | G128: -1
A129: 127 | B129: 1249 | C129: 23085500410 | D129: 39.3 | E129: 47.4 | G129: 43.35
A130: 128 | B130: 1253 | C130: 23085500411 | D130: 48.3 | E130: 47.8 | G130: 48.05
A131: 129 | B131: 1250 | C131: 23085500412 | D131: -1 | E131: -1 | G131: -1
A132: 130 | B132: 1273 | C132: 23085500413 | D132: -1 | E132: -1 | G132: -1
A133: 131 | B133: 1283 | C133: 23085500414 | D133: 52.1 | E133: 58.7 | G133: =(D133+E133)/2+F133 -> 55.4
A134: 132 | B134: 1277 | C134: 23085500415 | D134: 45.9 | E134: 56.7 | G134: 51.3
A135: 133 | B135: 1278 | C135: 23085500416 | D135: 49.9 | E135: 50.7 | G135: 50.3
A136: 134 | B136: 1253 | C136: 23085500417 | D136: 35.7 | E136: 51.4 | G136: 43.55
A137: 135 | B137: 1278 | C137: 23085500418 | D137: -1 | E137: -1 | G137: -1
A138: 136 | B138: 1271 | C138: 23085500419 | D138: 57.4 | E138: 55.9 | G138: =(D138+E138)/2+F138 -> 56.65
A139: 137 | B139: 1277 | C139: 23085500420 | D139: -1 | E139: -1 | G139: -1
A140: 138 | B140: 1264 | C140: 23085500421 | D140: 50.7 | E140: 45.4 | G140: 48.05
A141: 139 | B141: 1264 | C141: 23085500422 | D141: 52.2 | E141: 47.8 | G141: 50
A142: 140 | B142: 1273 | C142: 23085500423 | D142: 44 | E142: 88.9 | G142: 66.45
A143: 141 | B143: 1273 | C143: 23085500424 | D143: -1 | E143: -1 | G143: -1
A144: 142 | B144: 1273 | C144: 23085500425 | D144: 43 | E144: 50.9 | G144: =(D144+E144)/2+F144 -> 46.95
A145: 143 | B145: 1272 | C145: 23085500426 | D145: 34.2 | E145: 47.5 | G145: 40.85
A146: 144 | B146: 1278 | C146: 23085500427 | D146: -1 | E146: -1 | G146: -1
A147: 145 | B147: 1277 | C147: 23085500428 | D147: 48.4 | E147: 70.9 | G147: 59.65
A148: 146 | B148: 1273 | C148: 23085500429 | D148: 44.3 | E148: -1 | G148: =D148/2 -> 22.15
A149: 147 | B149: 1268 | C149: 23085500430 | D149: 55.1 | E149: 84.1 | G149: =(D149+E149)/2+F149 -> 69.6
A150: 148 | B150: 1264 | C150: 23085500501 | D150: -1 | E150: -1 | G150: -1
A151: 149 | B151: 1251 | C151: 23085500502 | D151: 48 | E151: 62.8 | G151: 55.4
A152: 150 | B152: 1277 | C152: 23085500503 | D152: 47.3 | E152: 39 | G152: 43.15
A153: 151 | B153: 1254 | C153: 23085500504 | D153: 47.9 | E153: 60.4 | G153: 54.15
A154: 152 | B154: 1271 | C154: 23085500505 | D154: 50.2 | E154: -1 | G154: =D154/2 -> 25.1
A155: 153 | B155: 1254 | C155: 23085500506 | D155: -1 | E155: -1 | G155: -1
A156: 154 | B156: 1277 | C156: 23085500507 | D156: 63.7 | E156: 62.3 | G156: =(D156+E156)/2+F156 -> 63
A157: 155 | B157: 1277 | C157: 23085500508 | D157: 58.6 | E157: 58.1 | G157: 58.35
A158: 156 | B158: 1262 | C158: 23085500509 | D158: 48 | E158: 58 | G158: 53
A159: 157 | B159: 1278 | C159: 23085500510 | D159: 57.3 | E159: 53.4 | G159: 55.35
A160: 158 | B160: 1262 | C160: 23085500511 | D160: 44.1 | E160: 38.9 | G160: 41.5
A161: 159 | B161: 1253 | C161: 23085500512 | D161: 54.5 | E161: 51.6 | G161: 53.05
A162: 160 | B162: 1277 | C162: 23085500513 | D162: -1 | E162: -1 | G162: -1
A163: 161 | B163: 1277 | C163: 23085500514 | D163: -1 | E163: -1 | G163: -1
A164: 162 | B164: 1273 | C164: 23085500515 | D164: -1 | E164: -1 | G164: -1
A165: 163 | B165: 1278 | C165: 23085500516 | D165: 52.5 | E165: 58.8 | G165: =(D165+E165)/2+F165 -> 55.65
A166: 164 | B166: 1262 | C166: 23085500517 | D166: 53.9 | E166: 49.1 | G166: 51.5
A167: 165 | B167: 1271 | C167: 23085500518 | D167: -1 | E167: -1 | G167: -1
A168: 166 | B168: 1266 | C168: 23085500519 | D168: 54.2 | E168: 60.1 | G168: 57.15
A169: 167 | B169: 1270 | C169: 23085500520 | D169: 50.5 | E169: 55.9 | G169: 53.2
A170: 168 | B170: 1278 | C170: 23085500521 | D170: -1 | E170: -1 | G170: -1
A171: 169 | B171: 1280 | C171: 23085500522 | D171: -1 | E171: -1 | G171: -1
A172: 170 | B172: 1272 | C172: 23085500523 | D172: 39.9 | E172: 66.4 | G172: =(D172+E172)/2+F172 -> 53.15
A173: 171 | B173: 1262 | C173: 23085500524 | D173: 45 | E173: 57.1 | G173: 51.05
A174: 172 | B174: 1277 | C174: 23085500525 | D174: 48.2 | E174: 63.6 | G174: 55.9
A175: 173 | B175: 1268 | C175: 23085500526 | D175: 47.7 | E175: 55.6 | G175: 51.65
A176: 174 | B176: 1277 | C176: 23085500527 | D176: -1 | E176: -1 | G176: -1
A177: 175 | B177: 1262 | C177: 23085500528 | D177: -1 | E177: -1 | G177: -1
A178: 176 | B178: 1278 | C178: 23085500529 | D178: 43.8 | E178: 62.2 | G178: =(D178+E178)/2+F178 -> 53
A179: 177 | B179: 1282 | C179: 23085500530 | D179: 61.2 | E179: 69.8 | G179: 65.5
A180: 178 | B180: 1272 | C180: 23085500601 | D180: 45.8 | E180: 49 | G180: 47.4
A181: 179 | B181: 1278 | C181: 23085500602 | D181: 59.8 | E181: 55.1 | G181: 57.45
A182: 180 | B182: 1277 | C182: 23085500603 | D182: 58.7 | E182: 55.2 | G182: 56.95
A183: 181 | B183: 1277 | C183: 23085500604 | D183: -1 | E183: -1 | G183: -1
A184: 182 | B184: 1273 | C184: 23085500605 | D184: 36.8 | E184: 42.7 | G184: =(D184+E184)/2+F184 -> 39.75
A185: 183 | B185: 1278 | C185: 23085500606 | D185: 45 | E185: 56.7 | G185: 50.85
A186: 184 | B186: 1283 | C186: 23085500607 | D186: 61.1 | E186: 68.6 | G186: 64.85
A187: 185 | B187: 1277 | C187: 23085500608 | D187: 68.6 | E187: 62.5 | G187: 65.55
A188: 186 | B188: 1279 | C188: 23085500609 | D188: -1 | E188: -1 | G188: -1
A189: 187 | B189: 1262 | C189: 23085500610 | D189: 46.1 | E189: 61.9 | G189: =(D189+E189)/2+F189 -> 54
A190: 188 | B190: 1254 | C190: 23085500611 | D190: -1 | E190: -1 | G190: -1
A191: 189 | B191: 1278 | C191: 23085500612 | D191: -1 | E191: -1 | G191: -1
A192: 190 | B192: 1279 | C192: 23085500613 | D192: 39.1 | E192: 63.3 | G192: 51.2
A193: 191 | B193: 1283 | C193: 23085500614 | D193: 48 | E193: 80.6 | G193: 64.3
A194: 192 | B194: 1269 | C194: 23085500615 | D194: 53.3 | E194: 66.5 | G194: 59.9
A195: 193 | B195: 1270 | C195: 23085500616 | D195: 51.8 | E195: 77.7 | G195: 64.75
A196: 194 | B196: 1278 | C196: 23085500617 | D196: -1 | E196: -1 | G196: -1
A197: 195 | B197: 1254 | C197: 23085500618 | D197: 49.8 | E197: 67.9 | G197: =(D197+E197)/2+F197 -> 58.85
A198: 196 | B198: 1272 | C198: 23085500619 | D198: 25.2 | E198: 47.8 | G198: 36.5
A199: 197 | B199: 1282 | C199: 23085500620 | D199: 60.2 | E199: 71.1 | G199: 65.65
A200: 198 | B200: 1273 | C200: 23085500621 | D200: 42.3 | E200: 43.1 | G200: 42.7
... 4300 more rows
